{"text_format":"3","workbook":"xlsx","n_sheets":13,"sheets":["INDICE","1","2","3","3 bis","3 ter","3 quarter","4","5","6","7","8","9"],"read":"whole","date_system":"1900"}

{"sheet":"INDICE","index":0,"n_rows":13,"n_cols":1,"rows_kept":13,"merged":[[0,0,0,6],[1,0,1,6],[2,0,2,6],[3,0,3,6],[4,0,4,6],[5,0,5,6],[6,0,6,6],[7,0,7,6],[8,0,8,6],[9,0,9,6],[10,0,10,6],[11,0,11,6],[12,0,12,6]]}
["Ramo Malattia - Indice delle tavole statistiche"]
[{"$f":"=HYPERLINK(\"#1!A1\", \"Premi lordi contabilizzati\")","v":""}]
[{"$f":"=HYPERLINK(\"#2!A1\", \"Unità di rischio numero e frequenza sinistri\")","v":""}]
[{"$f":"=HYPERLINK(\"#3!A1\", \"Indicatori sul costo dei sinistri\")","v":""}]
[{"$f":"=HYPERLINK(\"#'3 bis'!A1\", \"Indicatori sul costo dei sinistri bis\")","v":""}]
[{"$f":"=HYPERLINK(\"#'3 ter'!A1\", \"Indicatori sul costo dei sinistri ter\")","v":""}]
[{"$f":"=HYPERLINK(\"#'3 quarter'!A1\", \"Indicatori sul costo dei sinistri quarter\")","v":""}]
[{"$f":"=HYPERLINK(\"#4!A1\", \"Andamento del premio medio e del premio puro\")","v":""}]
[{"$f":"=HYPERLINK(\"#5!A1\", \"Velocità di liquidazione dei sinistri (numeri)\")","v":""}]
[{"$f":"=HYPERLINK(\"#6!A1\", \"Velocità di liquidazione dei sinistri (importi)\")","v":""}]
[{"$f":"=HYPERLINK(\"#7!A1\", \"Sintesi del conto tecnico del ramo\")","v":""}]
[{"$f":"=HYPERLINK(\"#8!A1\", \"Composizione delle spese di gestione e loro incidenza sui premi lordi contabilizzati\")","v":""}]
[{"$f":"=HYPERLINK(\"#9!A1\", \"Indicatori desunti dal conto tecnico\")","v":""}]

{"sheet":"1","index":1,"n_rows":11,"n_cols":5,"rows_kept":11,"merged":[[1,0,1,4],[2,0,2,4],[10,0,10,4]]}
[{"$f":"=HYPERLINK(\"#INDICE!A1\", \"Torna a INDICE\")","v":""}]
["Tavola 1 - Premi lordi contabilizzati"]
["(importi in milioni di Euro)"]
["Esercizio","N. imprese","Premi","Δ%","% di portafoglio rami danni"]
[2019,58,3057,null,8.9]
[2020,57,2986,-2.3,8.9]
[2021,58,3144,5.3,9.2]
[2022,55,3539,12.6,9.9]
[2023,52,3926,10.9,10.3]
[2024,50,4403,12.1,10.8]
["Fonte: Regolamento ISVAP n. 22/2008, Modulo 17."]

{"sheet":"2","index":2,"n_rows":11,"n_cols":11,"rows_kept":11,"merged":[[1,0,1,10],[9,0,9,10],[10,0,10,10]]}
[{"$f":"=HYPERLINK(\"#INDICE!A1\", \"Torna a INDICE\")","v":""}]
["Tavola 2 - Numero dei sinistri denunciati e con seguito"]
["Esercizio","N. unità di rischio","Δ%","N. denunciati","Δ%","N. denunciati con seguito al netto della stima per i tardivi","Δ%","N. denunciati con seguito al lordo della stima per i tardivi","Δ%","Frequenza sinistri in %","Indice di ripetibilità"]
[2019,17175101,null,8665786,null,7629964,null,8853598,null,51.55,3.21]
[2020,23442852,36.5,7250552,-16.3,6321078,-17.2,7694458,-13.1,32.82,2.98]
[2021,22449257,-4.2,10365333,43,9229133,46,10709279,39.2,47.7,3.54]
[2022,20264190,-9.7,9773219,-5.7,8575866,-7.1,10161355,-5.1,50.14,3.07]
[2023,20129681,-0.7,10973240,12.3,9655856,12.6,11327374,11.5,56.27,3]
[2024,21125729,4.9,12247482,11.6,10638051,10.2,12641960,11.6,59.84,3.06]
["Fonte: Regolamento ISVAP n. 22/2008, Modulo 28."]
["I dati escludono un'impresa per la quale le unità di rischio risultano incoerenti."]

{"sheet":"3","index":3,"n_rows":11,"n_cols":4,"rows_kept":11,"merged":[[1,0,1,3],[9,0,9,3],[10,0,10,3]]}
[{"$f":"=HYPERLINK(\"#INDICE!A1\", \"Torna a INDICE\")","v":""}]
["Tavola 3 - Indicatori di costo medio dei sinistri denunciati nell'anno di accadimento e al lordo della stima finale per sinistri tardivi a prezzi correnti"]
["Gen. di accadimento","Costo medio dei sinistri pagati","Costo medio dei sinistri riservati*","Costo medio complessivo dei sinistri"]
["2019",195,387,246]
["2020",218,371,272]
["2021",202,353,250]
["2022",206,368,256]
["2023",210,338,251]
["2024",211,331,250]
[" * Gli importi riservati sono comprensivi della stima finale per sinistri IBNR."]
["I dati escludono un'impresa per la quale le unità di rischio risultano incoerenti."]

{"sheet":"3 bis","index":4,"n_rows":11,"n_cols":3,"rows_kept":11,"merged":[[1,0,1,2],[9,0,9,2],[10,0,10,2]]}
[{"$f":"=HYPERLINK(\"#INDICE!A1\", \"Torna a INDICE\")","v":""}]
["Tavola 3 bis - Indicatori di costo medio dei sinistri denunciati nell'anno di accadimento e al lordo della stima finale per sinistri tardivi con rivalutazione degli importi pagati negli anni precedenti in base all'indice dei prezzi al consumo per famiglie di operai e di impiegati (FOI) al netto dei tabacchi"]
["Gen. di accadimento","Costo medio dei sinistri pagati*","Costo medio complessivo dei sinistri*"]
["2019",227,270]
["2020",255,296]
["2021",232,270]
["2022",219,265]
["2023",212,252]
["2024",211,250]
[" * Importi espressi in valuta 2024."]
["I dati escludono un'impresa per la quale le unità di rischio risultano incoerenti."]

{"sheet":"3 ter","index":5,"n_rows":12,"n_cols":4,"rows_kept":12,"merged":[[1,0,1,3],[2,0,2,3],[10,0,10,3],[11,0,11,3]]}
[{"$f":"=HYPERLINK(\"#INDICE!A1\", \"Torna a INDICE\")","v":""}]
["Tavola 3 ter - Costo medio dei sinistri con seguito dall'anno di accadimento fino al 31.12.2024"]
["(Importi in milioni di Euro;\ncosti medi in unità di Euro)"]
["Gen. di accadimento","Importo pagato e riservato","Costo medio complessivo dei sinistri","Δ%"]
[2019,2104,248]
[2020,1954,278,12.1]
[2021,2533,256,-7.9]
[2022,2498,267,4.3]
[2023,2823,263,-1.5]
[2024,3160,250,-4.9]
["Fonte: Regolamento ISVAP n. 22/2008,\nModulo 28, con relativo allegato 1."]
["I dati escludono un'impresa per la quale le unità di rischio risultano incoerenti."]

{"sheet":"3 quarter","index":6,"n_rows":12,"n_cols":4,"rows_kept":12,"merged":[[1,0,1,3],[9,0,9,3],[10,0,10,3],[11,0,11,3]]}
[{"$f":"=HYPERLINK(\"#INDICE!A1\", \"Torna a INDICE\")","v":""}]
["Tavola 3 quarter - Costo medio de sinistri con seguito dall'anno di accadimento fino al 31.12.2024 con rivalutazione degli importi pagati negli anni precedenti in base all'indice dei prezzi al consumo per famiglie di operai e di impiegati (FOI) al netto dei tabacchi"]
["Gen. di accadimento","Importo pagato e riservato","Costo medio complessivo dei sinistri","Δ%"]
[2019,2447,289]
[2020,2252,320,10.7]
[2021,2809,284,-11.2]
[2022,2596,278,-2.1]
[2023,2836,264,-5]
[2024,3160,250,-5.3]
["Fonte: Regolamento ISVAP n. 22/2008,\nModulo 28, con relativo allegato 1 e indice di rivalutazione FOI \n(al netto dei tabacchi) pubblicato dall'ISTAT."]
["Gli importi pagati e il costo medio complessivo dei sinistri sono espressi in valuta 2024."]
["I dati escludono un'impresa per la quale le unità di rischio risultano incoerenti."]

{"sheet":"4","index":7,"n_rows":13,"n_cols":5,"rows_kept":13,"merged":[[1,0,1,4],[9,0,9,4],[10,0,10,4],[11,0,11,4],[12,0,12,4]]}
[{"$f":"=HYPERLINK(\"#INDICE!A1\", \"Torna a INDICE\")","v":""}]
["Tavola 4 - Andamento del premio medio e del premio puro"]
["Anno","Premio medio calcolato sui premi contabilizzati","Premio puro*","Premio medio calcolato sui premi contabilizzati**","Premio puro**"]
[2019,174.2,126.7,203.2,138.9]
[2020,126.4,89.3,147.9,97.1]
[2021,138.8,119.1,159.5,129]
[2022,171.4,128.3,182.2,132.9]
[2023,191,141.3,192.6,142]
[2024,203.8,149.6,203.8,149.6]
["Fonte: Regolamento ISVAP n. 22/2008,\nModulo 17 e Modulo 28, con relativo allegato 1 e indice di rivalutazione FOI \n(al netto dei tabacchi) pubblicato dall'ISTAT."]
[" * Il premio puro è calcolato come prodotto tra frequenza e costo medio dei sinistri. Tali indicatori sono calcolati con riferimento ai sinistri denunciati nell'anno di accadimento, tenendo conto della stima dei sinistri tardivi."]
[" ** Importi espressi in valuta 2024."]
["I dati escludono un'impresa per la quale le unità di rischio risultano incoerenti."]

{"sheet":"5","index":8,"n_rows":11,"n_cols":8,"rows_kept":11,"merged":[[1,0,1,7],[9,0,9,7],[10,0,10,7]]}
[{"$f":"=HYPERLINK(\"#INDICE!A1\", \"Torna a INDICE\")","v":""}]
["Tavola 5 - Velocità di liquidazione dei sinistri per numeri al lordo della stima per i sinistri tardivi"]
["Gen. di accadimento","Nell'anno di generazione","Al 1° anno successivo","Al 2° anno successivo","Al 3° anno successivo","Al 4° anno successivo","Al 5° anno successivo","Riserva sinistri al 31.12.2024"]
[2019,76.7,98.2,99.4,99.6,99.7,99.7,0.3]
[2020,70.8,98.2,99.3,99.5,99.5,null,0.5]
[2021,74.3,98.4,99.2,99.4,null,null,0.6]
[2022,75.5,97.4,98.3,{"$nulls":3},1.7]
[2023,71.3,94.4,{"$nulls":4},5.6]
[2024,67.2,{"$nulls":5},32.8]
["Fonte: Regolamento ISVAP n. 22/2008, Modulo 28, con relativo allegato 1."]
["NB: Percentuale dei sinistri pagati, cumulati in ciascun anno di sviluppo, rispetto ai sinistri risultati con seguito al 31.12.2024 (pagati+riservati) al lordo della stima per i sinistri tardivi."]

{"sheet":"6","index":9,"n_rows":11,"n_cols":8,"rows_kept":11,"merged":[[1,0,1,7],[9,0,9,7],[10,0,10,7]]}
[{"$f":"=HYPERLINK(\"#INDICE!A1\", \"Torna a INDICE\")","v":""}]
["Tavola 6 - Velocità di liquidazione dei sinistri per importi al lordo della stima per i sinistri tardivi"]
["Gen. di accadimento","Nell'anno di generazione","Al 1° anno successivo","Al 2° anno successivo","Al 3° anno successivo","Al 4° anno successivo","Al 5° anno successivo","Riserva sinistri al 31.12.2024"]
[2019,60.2,92.9,97.2,98.3,98.7,99,1]
[2020,55.5,92.7,97.3,98.2,98.8,null,1.2]
[2021,58.6,92.4,96.3,97.6,null,null,2.4]
[2022,58.1,90.3,94.4,{"$nulls":3},5.6]
[2023,56.8,87.9,{"$nulls":4},12.1]
[2024,56.5,{"$nulls":5},43.5]
["Fonte: Regolamento ISVAP n. 22/2008, Modulo 28, con relativo allegato 1."]
["NB: Percentuale dei sinistri pagati, cumulati in ciascun anno di sviluppo, rispetto ai sinistri risultati con seguito al 31.12.2024 (pagati+riservati) al lordo della stima per i sinistri tardivi."]

{"sheet":"7","index":10,"n_rows":17,"n_cols":7,"rows_kept":17,"merged":[[1,0,1,6],[2,0,2,6],[15,0,15,6],[16,0,16,6]]}
[{"$f":"=HYPERLINK(\"#INDICE!A1\", \"Torna a INDICE\")","v":""}]
["Tavola 7 - Sintesi del conto tecnico del ramo"]
["(Importi in milioni di Euro)"]
["Voci","2019","2020","2021","2022","2023","2024"]
["Premi di competenza(1)",2911,2968,3109,3429,3837,4313]
["Oneri relativi ai sinistri(2)",2040,2035,2543,2420,2707,3057]
["Saldo altre partite tecniche(3)",-86,-85,-130,-67,-66,-70]
["Variazione delle riserve tecniche diverse(4)",-5,23,-7,22,10,12]
["Spese di gestione(5)",692,654,705,802,900,1033]
["Spese unitarie di gestione (euro)",38.5,27.3,30.8,38.2,43.1,47.2]
["Saldo tecn. lav. dir. lordo riassic. (6)=(1)-(2)+(3)-(4)-(5)",98,172,-261,117,155,141]
["Quota dell'utile degli investimenti(7)",61,32,44,16,87,88]
["Risult. conto tecn. lav. dir. lordo riassic.(8)=(6)+(7)",159,204,-217,134,242,229]
["Risultato delle cessioni in riassicurazione(9)",-22,-26,28,-22,-23,-26]
["Risult. conto tecn. lav. dir. netto riassic.(10)=(8)+(9)",137,178,-188,112,219,203]
["Fonte: Regolamento ISVAP n. 22/2008,\nModulo 17 e Modulo 28 per le unità di rischio assicurate."]
["I dati escludono un'impresa per la quale le unità di rischio risultano incoerenti."]

{"sheet":"8","index":11,"n_rows":15,"n_cols":7,"rows_kept":15,"merged":[[1,0,1,6],[14,0,14,6]]}
[{"$f":"=HYPERLINK(\"#INDICE!A1\", \"Torna a INDICE\")","v":""}]
["Tavola 8 - Composizione delle spese di gestione e loro incidenza sui premi lordi contabilizzati"]
["Voci di spesa","2019","2020","2021","2022","2023","2024"]
["Provvigioni di acquisizione e incasso Importo",472.8,429.7,479.2,561,614.7,704.1]
["Provvigioni di acquisizione e incasso Incidenza su premi (%)",15.5,14.4,15.2,15.9,15.7,16]
["Provvigioni di acquisizione e incasso Incidenza su spese tot. (%)",68.3,65.7,67.9,70,68.3,68.1]
["Altre spese di acquisizione Importo",104.2,102.2,97.4,108.3,137,144.6]
["Altre spese di acquisizione Incidenza su premi (%)",3.4,3.4,3.1,3.1,3.5,3.3]
["Altre spese di acquisizione Incidenza su spese tot. (%)",15.1,15.6,13.8,13.5,15.2,14]
["Altre spese di amministrazione Importo",115,121.7,128.9,132.8,147.8,184.7]
["Altre spese di amministrazione Incidenza su premi (%)",3.8,4.1,4.1,3.8,3.8,4.2]
["Altre spese di amministrazione Incidenza su spese tot. (%)",16.6,18.6,18.3,16.6,16.4,17.9]
["Totale spese di gestione Importo",691.9,653.7,705.4,802.1,899.5,1033.5]
["Totale spese di gestione Incidenza su premi (%)",22.6,21.9,22.4,22.7,22.9,23.5]
["Fonte: Regolamento ISVAP n. 22/2008, Modulo 17."]

{"sheet":"9","index":12,"n_rows":19,"n_cols":7,"rows_kept":19,"merged":[[1,0,1,6],[2,0,2,6],[17,0,17,6],[18,0,18,6]]}
[{"$f":"=HYPERLINK(\"#INDICE!A1\", \"Torna a INDICE\")","v":""}]
["Tavola 9 - Indicatori desunti dal conto tecnico, portafoglio diretto italiano"]
["(in %)"]
["Voci","2019","2020","2021","2022","2023","2024"]
["Sinistri dell'esercizio / Premi di competenza (Loss ratio dell'esercizio)",75,70.5,86.1,76.5,75,74.1]
["Oneri relativi ai sinistri / Premi di competenza (Loss ratio di bilancio)",70.1,68.6,81.8,70.6,70.5,70.9]
["Spese di gestione / Premi contabilizzati (Expense ratio)",22.6,21.9,22.4,22.7,22.9,23.5]
["Combined ratio di bilancio",92.7,90.5,104.2,93.3,93.5,94.3]
["Combined ratio dell'esercizio",97.7,92.4,108.6,99.1,97.9,97.6]
["Saldo tecnico lordo riassic. / Premi contabilizzati",3.2,5.8,-8.3,3.3,4,3.2]
["Saldo tecnico lordo riassic. / Premi di competenza",3.4,5.8,-8.4,3.4,4,3.3]
["utile degli investimenti / Premi contabilizzati",2,1.1,1.4,0.5,2.2,2]
["Risultato tecnico al lordo della riassic. / Premi contabil.",5.2,6.8,-6.9,3.8,6.2,5.2]
["Risultato tecnico al lordo della riassic. / Premi di competenza",5.5,6.9,-7,3.9,6.3,5.3]
["Risultato tecnico al netto della riassic. / Premi contabil.",4.5,6,-6,3.2,5.6,4.6]
["Risultato tecnico al netto della riassic. / Premi di competenza",4.7,6,-6.1,3.3,5.7,4.7]
["Risultato tecnico al netto riassic. / unità di rischio assicurate (euro)",7.4,7.4,-8.7,5.2,10.4,9.2]
["Fonte: Regolamento ISVAP n. 22/2008,\nModulo 17 e Modulo 28 per le unità di rischio assicurate."]
["I dati escludono un'impresa per la quale le unità di rischio risultano incoerenti."]